fUST/lending_fUST_20250502
["ID","MTS","AMOUNT","RATE_DAILY","PERIOD"]
[359570165,1746131446855,-954.747687,0.000235,7]
[359570166,1746131446864,-151.0,0.000235,7]
[359570167,1746131446874,-151.0,0.000235,7]
[359570168,1746131446884,-151.0,0.000235,7]
[359570169,1746131446893,-151.0,0.000235,7]
[359570170,1746131446903,-151.0,0.000235,7]
[359570171,1746131446913,-151.0,0.000235,7]
[359570172,1746131446922,-151.0,0.000235,7]
[359570173,1746131446931,-841.10298755,0.000235,7]
[359570174,1746131446940,-151.0,0.000235,7]
[359570175,1746131446950,-151.0,0.000235,7]
[359570176,1746131446960,-151.0,0.000235,7]
[359570177,1746131446969,-198.316186,0.000235,7]
[359570178,1746131446979,-220.806371,0.000235,7]
[359570179,1746131446990,-151.0,0.00023583,2]
[359570180,1746131446999,-207.4,0.00023583,2]
[359570181,1746131447010,-151.0,0.00023583,2]
[359570182,1746131447019,-179.89467565,0.00023583,2]
[359570183,1746131447028,-151.0,0.000236,8]
[359570184,1746131447038,-963.18441075,0.000236,2]
[359570185,1746131447048,-183.532,0.00023604,4]
[359570186,1746131447058,-500.0,0.00023673,2]
[359570187,1746131447068,-231.90821332,0.00023673,2]
[359570188,1746131447077,-500.0,0.00023673,2]
[359570189,1746131447087,-500.0,0.00023673,2]
[359570190,1746131447097,-500.0,0.00023673,2]
[359570191,1746131447106,-500.0,0.00023673,2]
[359570192,1746131447116,-151.0,0.00023674,7]
[359570193,1746131447125,-151.0,0.00023674,7]
[359570194,1746131447134,-393.621464,0.00023674,7]
[359570195,1746131447143,-393.621464,0.00023674,7]
[359570196,1746131447152,-4210.677828,0.00023674,2]
[359570197,1746131447162,-4210.677828,0.00023674,2]
[359570198,1746131447170,-197.784546,0.00023674,7]
[359570199,1746131447178,-197.784546,0.00023674,7]
[359570200,1746131447188,-536.410604,0.00023674,2]
[359570201,1746131447196,-536.410604,0.00023674,2]
[359570202,1746131447205,-171.26004058,0.00023699,2]
[359570203,1746131447215,-88310.30029033,0.000237,2]
[359570204,1746131447227,-2018.38098029,0.000237,2]
[359570205,1746131447248,-6277.93729,0.000237,2]
[359570206,1746131494788,1000.0,0.00018062,2]
[359570210,1746131632447,1000.0,0.00018071,2]
[359570336,1746132636283,-1000.0,0.00018485,2]
[359570337,1746132636293,-151.0,0.00018585,2]
[359570338,1746132636302,-465.75458871,0.000189,2]
[359570339,1746132636312,-286.59433024,0.00019057,2]
[359570340,1746132636322,-195.3689845,0.00019687,2]
[359570341,1746132636331,-328.0,0.00019885,2]
[359570342,1746132636340,-151.0,0.00019954,2]
[359570343,1746132636350,-151.0,0.00021323,2]
[359570344,1746132636359,-500.0,0.00021332,2]
[359570345,1746132636369,-500.0,0.00021332,2]
[359570346,1746132636379,-500.0,0.00021332,2]
[359570347,1746132636388,-301.75189518,0.00021332,2]
[359570348,1746132636398,-500.0,0.00021332,2]
[359570349,1746132636407,-2.04225158,0.00021332,2]
[359570352,1746132636431,-497.95774842,0.00021332,2]
[359570354,1746132636440,-500.0,0.00021332,2]
[359570356,1746132636450,-500.0,0.00021332,2]
[359570357,1746132636459,-500.0,0.00021332,2]
[359570358,1746132636469,-500.0,0.00021332,2]
[359570359,1746132636479,-500.0,0.00021332,2]
[359570360,1746132636489,-500.0,0.00021332,2]
[359570361,1746132636500,-500.0,0.00021332,2]
[359570362,1746132636509,-500.0,0.00021332,2]
[359570363,1746132636519,-500.0,0.00021332,2]
[359570364,1746132636529,-500.0,0.00021332,2]
[359570365,1746132636539,-500.0,0.00021332,2]
[359570366,1746132636551,-500.0,0.00021332,2]
[359570367,1746132636561,-500.0,0.00021332,2]
[359570368,1746132636571,-500.0,0.00021332,2]
[359570369,1746132636581,-300.0,0.00021332,2]
[359570370,1746132636591,-157.57,0.00021333,2]
[359570371,1746132636602,-15233.1356488,0.00021339,2]
[359570372,1746132636612,-466.52352303,0.0002262,2]
[359570373,1746132636622,-151.0,0.00022692,2]
[359570374,1746132636632,-351.45132286,0.00022989,2]
[359570375,1746132636642,-500.0,0.00022989,2]
[359570376,1746132636652,-500.0,0.00022989,2]
[359570377,1746132636661,-153.70819449,0.00022989,2]
[359570378,1746132636671,-500.0,0.00022989,2]
[359570379,1746132636681,-177.8246817,0.00022989,2]
[359570380,1746132636692,-514.61708491,0.00022989,2]
[359570381,1746132636703,-100000.0,0.0002299,2]
[359570382,1746132636713,-420.0,0.00023196,2]
[359570383,1746132636724,-1128.6117143,0.0002337,2]
[359570384,1746132636735,-180.6100998,0.0002337,2]
[359570385,1746132636744,-157.4635343,0.0002337,2]
[359570386,1746132636754,-157.4635343,0.0002337,2]
[359570387,1746132636763,-151.0,0.00023499,7]
[359570388,1746132636773,-269.469986,0.000235,7]
[359570389,1746132636783,-269.469986,0.000235,7]
[359570390,1746132636794,-269.469986,0.000235,7]
[359570391,1746132636803,-269.469986,0.000235,7]
[359570392,1746132636814,-970.490497,0.000235,7]
[359570393,1746132636824,-970.490497,0.000235,7]
[359570394,1746132636834,-151.0,0.000235,7]
[359570395,1746132636845,-151.0,0.000235,7]
[359570396,1746132636856,-151.0,0.000235,7]
[359570397,1746132636867,-151.0,0.000235,7]
[359570398,1746132636878,-151.0,0.000235,7]
[359570399,1746132636888,-3112.7,0.000235,7]
[359570400,1746132636898,-3112.7,0.000235,7]
[359570401,1746132636908,-3112.7,0.000235,7]
[359570402,1746132636918,-3112.7,0.000235,7]
[359570403,1746132636927,-841.10298755,0.000235,7]
[359570404,1746132636938,-12595.7684382,0.000235,7]
[359570405,1746132636948,-160.0,0.000235,7]
[359570406,1746132636958,-160.0,0.000235,7]
[359570407,1746132636968,-500.0,0.00023573,2]
[359570408,1746132636978,-500.0,0.00023573,2]
[359570409,1746132636990,-500.0,0.00023573,2]
[359570410,1746132637000,-500.0,0.00023573,2]
[359570411,1746132637010,-500.0,0.00023573,2]
[359570412,1746132637020,-500.0,0.00023573,2]
[359570413,1746132637030,-500.0,0.00023573,2]
[359570414,1746132637040,-500.0,0.00023573,2]
[359570415,1746132637051,-500.0,0.00023573,2]
[359570416,1746132637063,-503.33594763,0.00023573,2]
[359570417,1746132637074,-500.0,0.00023573,2]
[359570418,1746132637084,-500.0,0.00023573,2]
[359570419,1746132637094,-500.0,0.00023573,2]
[359570420,1746132637104,-500.0,0.00023573,2]
[359570421,1746132637114,-300.0,0.00023573,2]
[359570422,1746132637127,-500.0,0.00023573,2]
[359570423,1746132637138,-500.0,0.00023573,2]
[359570424,1746132637149,-500.0,0.00023573,2]
[359570425,1746132637160,-500.0,0.00023573,2]
[359570426,1746132637170,-500.0,0.00023573,2]
[359570427,1746132637180,-500.0,0.00023573,2]
[359570428,1746132637190,-500.0,0.00023573,2]
[359570429,1746132637201,-500.0,0.00023573,2]
[359570430,1746132637212,-500.0,0.00023573,2]
[359570431,1746132637222,-500.0,0.00023573,2]
[359570432,1746132637232,-215.796453,0.00023573,2]
[359570433,1746132637242,-500.0,0.00023573,2]
[359570434,1746132637251,-502.75942627,0.00023573,2]
[359570435,1746132637262,-151.0,0.00023583,2]
[359570436,1746132637272,-207.4,0.00023583,2]
[359570437,1746132637282,-2085.67505394,0.000236,9]
[359570438,1746132637292,-2085.67505371,0.000236,9]
[359570439,1746132637302,-370000.0,0.000236,2]
[359570440,1746132637311,-1434.51390879,0.000236,2]
[359570441,1746132637321,-160.0,0.000237,3]
[359570442,1746132637331,-151.0,0.000237,7]
[359570443,1746132637340,-151.0,0.000237,7]
[359570444,1746132637350,-151.0,0.000237,7]
[359570445,1746132637360,-151.0,0.000237,7]
[359570446,1746132637370,-151.0,0.000237,7]
[359570447,1746132637379,-269.469986,0.000237,7]
[359570448,1746132637389,-269.469986,0.000237,7]
[359570449,1746132637399,-970.490497,0.000237,7]
[359570450,1746132637409,-970.490497,0.000237,7]
[359570451,1746132637419,-151.0,0.000237,7]
[359570452,1746132637429,-151.0,0.000237,7]
[359570453,1746132637439,-152.439723,0.000237,7]
[359570454,1746132637450,-160.0,0.000237,7]
[359570455,1746132637460,-465.07617615,0.00023751,2]
[359570456,1746132637470,-1000.0,0.0002389,2]
[359570457,1746132637480,-1000.0,0.0002389,2]
[359570458,1746132637490,-1000.0,0.0002389,2]
[359570459,1746132637499,-1000.0,0.0002389,2]
[359570460,1746132637509,-1000.0,0.0002389,2]
[359570461,1746132637519,-1000.0,0.0002389,2]
[359570462,1746132637529,-436.15649152,0.0002389,2]
[359570463,1746132637539,-182.07995741,0.000239,10]
[359570464,1746132637550,-40000.0,0.000239,3]
[359570465,1746132637560,-151.0,0.000239,5]
[359570466,1746132637570,-151.0,0.000239,5]
[359570467,1746132637581,-151.0,0.000239,7]
[359570468,1746132637592,-151.0,0.000239,7]
[359570469,1746132637602,-157.27545,0.000239,7]
[359570470,1746132637612,-269.469986,0.000239,7]
[359570471,1746132637623,-269.469986,0.000239,7]
[359570472,1746132637632,-970.490497,0.000239,7]
[359570473,1746132637645,-970.490497,0.000239,7]
[359570474,1746132637656,-151.0,0.000239,7]
[359570475,1746132637666,-151.0,0.000239,7]
[359570476,1746132637677,-160.0,0.000239,3]
[359570477,1746132637688,-841.10298755,0.000239,3]
[359570478,1746132637701,-465.75458871,0.000239,2]
[359570479,1746132637712,-160.0,0.000239,3]
[359570480,1746132637723,-12595.7684382,0.000239,3]
[359570481,1746132637734,-160.0,0.000239,3]
[359570482,1746132637744,-160.0,0.000239,3]
[359570483,1746132637754,-421.4777418,0.000239,3]
[359570484,1746132637763,-160.0,0.000239,3]
[359570485,1746132637773,-160.0,0.000239,3]
[359570486,1746132637783,-512.21692466,0.00023904,2]
[359570487,1746132637793,-151.0,0.0002396,7]
[359570488,1746132637802,-151.0,0.0002396,7]
[359570489,1746132637815,-151.0,0.0002399,7]
[359570490,1746132637824,-410.27838435,0.0002399,2]
[359570491,1746132637834,-970.490497,0.0002399,7]
[359570492,1746132637843,-970.490497,0.0002399,7]
[359570493,1746132637853,-151.0,0.0002399,7]
[359570494,1746132637862,-160.0,0.00024,7]
[359570495,1746132637872,-151.0,0.00024,6]
[359570496,1746132637881,-160.0,0.00024,7]
[359570497,1746132637891,-160.0,0.00024,7]
[359570498,1746132637901,-421.4777418,0.00024,7]
[359570499,1746132637911,-160.0,0.00024,7]
[359570500,1746132637921,-151.0,0.00024061,2]
[359570501,1746132637931,-151.0,0.000241,5]
[359570502,1746132637940,-2085.67505371,0.00024141,10]
[359570503,1746132637950,-1134.1678406,0.00024192,2]
[359570504,1746132637959,-151.0,0.000242,9]
[359570505,1746132637969,-275.6110885,0.00024247,2]
[359570506,1746132637979,-151.0,0.000243,6]
[359570507,1746132637993,-151.0,0.000243,10]
[359570508,1746132638003,-14606.73556162,0.00024354,2]
[359570510,1746132638013,-151.0,0.000244,8]
[359570511,1746132638023,-151.0,0.000244,10]
[359570512,1746132638034,-151.0,0.00024404,7]
[359570513,1746132638044,-151.0,0.00024404,7]
[359570514,1746132638054,-151.0,0.00024404,7]
[359570515,1746132638065,-248.0386232,0.00024404,7]
[359570516,1746132638077,-269.469986,0.00024404,7]
[359570517,1746132638087,-269.469986,0.00024404,7]
[359570519,1746132638096,-970.490497,0.00024404,7]
[359570521,1746132638106,-970.490497,0.00024404,7]
[359570523,1746132638116,-151.0,0.00024404,7]
[359570524,1746132638126,-250.0,0.00024424,2]
[359570525,1746132638136,-151.0,0.000245,9]
[359570527,1746132638145,-160.0,0.00024548,2]
[359570529,1746132638155,-500.0,0.00024573,2]
[359570531,1746132638164,-500.0,0.00024573,2]
[359570533,1746132638174,-500.0,0.00024573,2]
[359570535,1746132638183,-500.0,0.00024573,2]
[359570537,1746132638193,-500.0,0.00024573,2]
[359570538,1746132638202,-500.0,0.00024599,2]
[359570540,1746132638212,-500.7900727,0.00024599,2]
[359570541,1746132638222,-160.0,0.00024599,2]
[359570542,1746132638232,-78121.0761262,0.000246,2]
[359570543,1746132638242,-3860.20680442,0.000246,3]
[359570544,1746132638296,-160.0,0.000246,3]
[359570545,1746132638306,-285308.20398347,0.000246,3]
[359570546,1746132638315,-151.0,0.000246,7]
[359570547,1746132638325,-151.0,0.000246,7]
[359570548,1746132638335,-269.469986,0.000246,7]
[359570549,1746132638344,-269.469986,0.000246,7]
[359570550,1746132638353,-151.0,0.000246,10]
[359570551,1746132638362,-151.0,0.000246,7]
[359570552,1746132638371,-970.490497,0.000246,7]
[359570553,1746132638381,-970.490497,0.000246,7]
[359570554,1746132638390,-151.0,0.000246,7]
[359570555,1746132638400,-151.0,0.000246,7]
[359570556,1746132638410,-151.0,0.000246,7]
[359570557,1746132638423,-151.0,0.000246,7]
[359570558,1746132638433,-151.0,0.000246,7]
[359570559,1746132638442,-151.0,0.000246,7]
[359570560,1746132638451,-151.0,0.000246,7]
[359570561,1746132638461,-151.0,0.000246,7]
[359570562,1746132638470,-151.0,0.000246,7]
[359570563,1746132638480,-151.0,0.000246,7]
[359570564,1746132638491,-151.0,0.000246,7]
[359570565,1746132638501,-266.522939,0.000246,7]
[359570566,1746132638511,-208.704308,0.000246,7]
[359570567,1746132638521,-266.522939,0.000246,7]
[359570568,1746132638531,-171.924358,0.000246,7]
[359570569,1746132638540,-171.924358,0.000246,7]
[359570570,1746132638550,-151.0,0.000246,7]
[359570571,1746132638559,-151.0,0.000246,7]
[359570572,1746132638569,-292.688111,0.000246,7]
[359570573,1746132638580,-292.688111,0.000246,7]
[359570574,1746132638590,-492.634581,0.000246,7]
[359570575,1746132638600,-492.634581,0.000246,7]
[359570576,1746132638610,-151.0,0.000246,7]
[359570577,1746132638619,-151.0,0.000246,7]
[359570578,1746132638630,-492.634581,0.000246,7]
[359570579,1746132638639,-492.634581,0.000246,7]
[359570580,1746132638649,-151.0,0.000246,7]
[359570581,1746132638658,-151.0,0.000246,7]
[359570582,1746132638668,-151.0,0.000246,7]
[359570583,1746132638679,-151.0,0.000246,7]
[359570584,1746132638688,-151.0,0.000246,7]
[359570585,1746132638699,-151.0,0.000246,7]
[359570586,1746132638710,-151.0,0.000246,7]
[359570587,1746132638720,-151.0,0.000246,7]
[359570588,1746132638730,-151.0,0.000246,7]
[359570589,1746132638741,-164.786116,0.000246,7]
[359570590,1746132638750,-164.786116,0.000246,7]
[359570591,1746132638760,-164.786116,0.000246,7]
[359570592,1746132638770,-164.786116,0.000246,7]
[359570593,1746132638780,-151.0,0.000246,7]
[359570594,1746132638790,-151.0,0.000246,7]
[359570595,1746132638799,-151.0,0.000246,7]
[359570596,1746132638809,-168.229137,0.000246,7]
[359570597,1746132638819,-168.229137,0.000246,7]
[359570598,1746132638828,-168.229137,0.000246,7]
[359570599,1746132638838,-168.229137,0.000246,7]
[359570600,1746132638847,-151.0,0.000246,7]
[359570601,1746132638857,-151.0,0.000246,7]
[359570602,1746132638867,-416.463635,0.000246,7]
[359570603,1746132638876,-416.463635,0.000246,7]
[359570604,1746132638886,-151.0,0.000246,7]
[359570605,1746132638896,-151.0,0.000246,7]
[359570606,1746132638905,-416.463635,0.000246,7]
[359570607,1746132638915,-416.463635,0.000246,7]
[359570608,1746132638925,-151.0,0.000246,7]
[359570609,1746132638934,-151.0,0.000246,7]
[359570610,1746132638944,-3789.610045,0.000246,2]
[359570611,1746132638954,-3789.610045,0.000246,2]
[359570612,1746132638962,-3789.610045,0.000246,2]
[359570613,1746132638971,-3789.610045,0.000246,2]
[359570614,1746132638982,-156.279059,0.000246,7]
[359570615,1746132638996,-156.279059,0.000246,7]
[359570616,1746132639005,-156.279059,0.000246,7]
[359570617,1746132639015,-156.279059,0.000246,7]
[359570618,1746132639024,-652.530011,0.000246,7]
[359570619,1746132639034,-652.530011,0.000246,7]
[359570620,1746132639043,-652.530011,0.000246,7]
[359570621,1746132639052,-652.530011,0.000246,7]
[359570622,1746132639061,-151.0,0.000246,7]
[359570623,1746132639071,-151.0,0.000246,7]
[359570624,1746132639080,-841.10298755,0.000246,7]
[359570625,1746132639089,-841.10298755,0.000246,3]
[359570626,1746132639098,-151.0,0.000246,7]
[359570627,1746132639107,-151.0,0.000246,7]
[359570628,1746132639117,-354.259318,0.000246,7]
[359570629,1746132639126,-354.259318,0.000246,7]
[359570630,1746132639135,-331.648556,0.000246,7]
[359570631,1746132639144,-151.0,0.000246,7]
[359570632,1746132639153,-160.0,0.000246,7]
[359570633,1746132639163,-160.0,0.000246,3]
[359570634,1746132639172,-331.648556,0.000246,7]
[359570635,1746132639181,-151.0,0.000246,7]
[359570636,1746132639191,-332.954095,0.000246,7]
[359570637,1746132639200,-332.954095,0.000246,7]
[359570638,1746132639209,-332.954095,0.000246,7]
[359570639,1746132639218,-332.954095,0.000246,7]
[359570640,1746132639227,-12595.7684382,0.000246,7]
[359570641,1746132639243,-12595.7684382,0.000246,3]
[359570642,1746132639254,-151.0,0.000246,7]
[359570643,1746132639262,-160.0,0.000246,7]
[359570644,1746132639272,-160.0,0.000246,3]
[359570645,1746132639282,-178.006092,0.000246,7]
[359570646,1746132639292,-210.126378,0.000246,7]
[359570647,1746132639302,-210.126378,0.000246,7]
[359570648,1746132639312,-178.006092,0.000246,7]
[359570649,1746132639321,-210.126378,0.000246,7]
[359570650,1746132639331,-210.126378,0.000246,7]
[359570651,1746132639340,-162.546606,0.000246,7]
[359570652,1746132639350,-162.546606,0.000246,7]
[359570653,1746132639360,-162.546606,0.000246,7]
[359570654,1746132639370,-162.546606,0.000246,7]
[359570655,1746132639379,-160.0,0.000246,7]
[359570656,1746132639389,-160.0,0.000246,3]
[359570657,1746132639399,-421.4777418,0.000246,7]
[359570658,1746132639408,-421.4777418,0.000246,3]
[359570659,1746132639418,-482.769544,0.000246,2]
[359570660,1746132639427,-151.0,0.000246,7]
[359570661,1746132639437,-482.769544,0.000246,2]
[359570662,1746132639447,-151.0,0.000246,7]
[359570663,1746132639456,-381.369101,0.000246,7]
[359570664,1746132639466,-381.369101,0.000246,7]
[359570665,1746132639476,-151.0,0.000246,7]
[359570666,1746132639485,-160.0,0.000246,7]
[359570667,1746132639496,-160.0,0.000246,3]
[359570668,1746132639506,-151.0,0.000246,7]
[359570669,1746132639516,-151.0,0.000246,7]
[359570670,1746132639527,-153.912212,0.000246,7]
[359570671,1746132639536,-151.0,0.000246,7]
[359570672,1746132639546,-151.0,0.000246,7]
[359570673,1746132639556,-151.0,0.000246,7]
[359570674,1746132639566,-151.0,0.000246,7]
[359570675,1746132639576,-689.7961553,0.0002465,2]
[359570676,1746132639585,-151.0,0.00024651,7]
[359570677,1746132639595,-151.0,0.00024651,7]
[359570678,1746132639605,-266.522939,0.00024651,7]
[359570679,1746132639614,-266.522939,0.00024651,7]
[359570680,1746132639624,-151.0,0.00024651,7]
[359570681,1746132639634,-155.158783,0.00024651,7]
[359570682,1746132639645,-292.688111,0.00024651,7]
[359570683,1746132639655,-292.688111,0.00024651,7]
[359570684,1746132639666,-151.0,0.00024658,7]
[359570685,1746132639676,-151.0,0.00024658,7]
[359570686,1746132639686,-151.0,0.00024658,7]
[359570687,1746132639696,-151.0,0.00024658,7]
[359570688,1746132639706,-151.0,0.00024658,7]
[359570689,1746132639716,-151.0,0.00024658,7]
[359570690,1746132639726,-182.07995741,0.000247,7]
[359570691,1746132639736,-160.0,0.000247,7]
[359570692,1746132639746,-151.0,0.000247,10]
[359570693,1746132639755,-160.0,0.00024756,2]
[359570694,1746132639765,-2085.67505371,0.00024762,11]
[359570695,1746132639774,-360.0,0.00024782,3]
[359570696,1746132639784,-360.0,0.00024782,3]
[359570697,1746132639793,-360.0,0.00024782,3]
[359570698,1746132639804,-360.0,0.00024782,3]
[359570699,1746132639814,-360.0,0.00024782,3]
[359570700,1746132639823,-360.0,0.00024782,3]
[359570701,1746132639833,-360.0,0.00024782,3]
[359570702,1746132639843,-360.0,0.00024782,3]
[359570703,1746132639852,-360.0,0.00024782,3]
[359570704,1746132639861,-360.0,0.00024782,3]
[359570705,1746132639872,-360.0,0.00024782,3]
[359570706,1746132639882,-360.0,0.00024782,3]
[359570707,1746132639892,-360.0,0.00024782,3]
[359570708,1746132639901,-360.0,0.00024782,3]
[359570709,1746132639911,-360.0,0.00024782,3]
[359570710,1746132639921,-360.0,0.00024782,3]
[359570711,1746132639932,-360.0,0.00024782,3]
[359570712,1746132639941,-360.0,0.00024782,3]
[359570713,1746132639951,-360.0,0.00024782,3]
[359570714,1746132639961,-360.0,0.00024782,3]
[359570715,1746132639971,-360.0,0.00024782,3]
[359570716,1746132639982,-360.0,0.00024782,3]
[359570717,1746132639997,-360.0,0.00024782,3]
[359570718,1746132640008,-360.0,0.00024782,3]
[359570719,1746132640018,-360.0,0.00024782,3]
[359570720,1746132640028,-360.0,0.00024782,3]
[359570721,1746132640039,-360.0,0.00024782,3]
[359570722,1746132640049,-360.0,0.00024782,3]
[359570723,1746132640059,-360.0,0.00024782,3]
[359570724,1746132640070,-159.9897165,0.00024782,3]
[359570725,1746132640080,-360.0,0.00024782,3]
[359570726,1746132640090,-508.30069515,0.00024782,3]
[359570727,1746132640100,-154.0,0.00024782,3]
[359570728,1746132640110,-202.51290915,0.00024782,3]
[359570729,1746132640120,-211.17957468,0.00024782,3]
[359570730,1746132640129,-154.0,0.00024782,3]
[359570731,1746132640139,-154.0,0.00024782,3]
[359570732,1746132640148,-154.0,0.00024782,3]
[359570733,1746132640158,-154.0,0.00024782,3]
[359570734,1746132640167,-154.0,0.00024782,3]
[359570735,1746132640177,-159.0,0.00024782,3]
[359570736,1746132640186,-154.0,0.00024782,3]
[359570737,1746132640195,-166.0,0.00024782,3]
[359570738,1746132640205,-159.0,0.00024782,3]
[359570739,1746132640214,-154.0,0.00024782,3]
[359570740,1746132640224,-154.0,0.00024782,3]
[359570741,1746132640234,-159.0,0.00024782,3]
[359570742,1746132640243,-154.0,0.00024782,3]
[359570743,1746132640253,-159.0,0.00024782,3]
[359570744,1746132640263,-154.0,0.00024782,3]
[359570745,1746132640272,-163.17042962,0.00024782,3]
[359570747,1746132640282,-154.0,0.00024782,3]
[359570749,1746132640292,-154.0,0.00024782,3]
[359570750,1746132640302,-154.0,0.00024782,3]
[359570751,1746132640311,-166.0,0.00024782,3]
[359570752,1746132640321,-154.0,0.00024782,3]
[359570753,1746132640330,-162.89753949,0.00024782,3]
[359570754,1746132640339,-154.0,0.00024782,3]
[359570755,1746132640349,-154.0,0.00024782,3]
[359570756,1746132640359,-154.0,0.00024782,3]
[359570757,1746132640368,-154.0,0.00024782,3]
[359570758,1746132640378,-320.0,0.00024782,3]
[359570759,1746132640388,-154.0,0.00024782,3]
[359570760,1746132640399,-320.0,0.00024782,3]
[359570761,1746132640410,-154.0,0.00024782,3]
[359570762,1746132640419,-164.20540746,0.00024782,3]
[359570763,1746132640429,-320.0,0.00024782,3]
[359570764,1746132640439,-320.0,0.00024782,3]
[359570765,1746132640448,-320.0,0.00024782,3]
[359570766,1746132640458,-320.0,0.00024782,3]
[359570767,1746132640469,-320.0,0.00024782,3]
[359570768,1746132640478,-320.0,0.00024782,3]
[359570769,1746132640488,-320.0,0.00024782,3]
[359570770,1746132640498,-320.0,0.00024782,3]
[359570771,1746132640507,-320.0,0.00024782,3]
[359570772,1746132640518,-320.0,0.00024782,3]
[359570773,1746132640527,-320.0,0.00024782,3]
[359570774,1746132640537,-320.0,0.00024782,3]
[359570775,1746132640547,-320.0,0.00024782,3]
[359570776,1746132640556,-320.0,0.00024782,3]
[359570777,1746132640567,-320.0,0.00024782,3]
[359570779,1746132640576,-320.0,0.00024782,3]
[359570780,1746132640586,-320.0,0.00024782,3]
[359570781,1746132640596,-320.0,0.00024782,3]
[359570782,1746132640606,-320.0,0.00024782,3]
[359570783,1746132640616,-320.0,0.00024782,3]
[359570784,1746132640626,-320.0,0.00024782,3]
[359570785,1746132640635,-320.0,0.00024782,3]
[359570786,1746132640644,-320.0,0.00024782,3]
[359570787,1746132640655,-320.0,0.00024782,3]
[359570788,1746132640664,-320.0,0.00024782,3]
[359570789,1746132640675,-320.0,0.00024782,3]
[359570790,1746132640685,-320.0,0.00024782,3]
[359570791,1746132640694,-320.0,0.00024782,3]
[359570792,1746132640705,-320.0,0.00024782,3]
[359570793,1746132640716,-320.0,0.00024782,3]
[359570794,1746132640726,-320.0,0.00024782,3]
[359570795,1746132640735,-320.0,0.00024782,3]
[359570796,1746132640744,-320.0,0.00024782,3]
[359570797,1746132640755,-320.0,0.00024782,3]
[359570798,1746132640764,-320.0,0.00024782,3]
[359570799,1746132640774,-320.0,0.00024782,3]
[359570800,1746132640784,-320.0,0.00024782,3]
[359570801,1746132640793,-218.07477306,0.00024782,3]
[359570802,1746132640803,-151.0,0.000248,7]
[359570803,1746132640813,-151.0,0.000248,7]
[359570804,1746132640822,-269.469986,0.000248,7]
[359570805,1746132640831,-269.469986,0.000248,7]
[359570806,1746132640840,-151.0,0.000248,8]
[359570807,1746132640850,-151.0,0.000248,7]
[359570808,1746132640859,-151.0,0.000248,7]
[359570809,1746132640869,-151.0,0.000248,7]
[359570810,1746132640878,-151.0,0.000248,7]